fUSD/lending_fUSD_20240727
["ID","MTS","AMOUNT","RATE_DAILY","PERIOD"]
[333402301,1722109834094,-500.0,0.00010999,2]
[333402302,1722109834104,-345.66414586,0.00010999,2]
[333402303,1722109834114,-8500.0,0.00010999,2]
[333402304,1722109834124,-456.0191096,0.00010999,2]
[333402305,1722109834134,-500.0,0.00010999,2]
[333402306,1722109834144,-500.0,0.00010999,2]
[333402307,1722109834155,-500.0,0.00010999,2]
[333402308,1722109834165,-524.93,0.00010999,2]
[333402309,1722109834176,-197.29,0.00010999,2]
[333402310,1722109834186,-524.93,0.00010999,2]
[333402311,1722109834197,-524.93,0.00010999,2]
[333402312,1722109834207,-524.93,0.00010999,2]
[333402313,1722109834217,-524.93,0.00010999,2]
[333402314,1722109834228,-500.0,0.00010999,2]
[333402315,1722109834238,-434.99486142,0.00010999,2]
[333402316,1722109834248,-524.93,0.00010999,2]
[333402317,1722109834257,-524.93,0.00010999,2]
[333402318,1722109834268,-524.93,0.00010999,2]
[333402319,1722109834279,-524.93,0.00010999,2]
[333402320,1722109834289,-524.93,0.00010999,2]
[333402321,1722109834299,-524.93,0.00010999,2]
[333402322,1722109834310,-524.93,0.00010999,2]
[333402323,1722109834321,-524.93,0.00010999,2]
[333402324,1722109834332,-524.93,0.00010999,2]
[333402325,1722109834342,-524.93,0.00010999,2]
[333402326,1722109834352,-524.93,0.00010999,2]
[333402327,1722109834362,-524.93,0.00010999,2]
[333402328,1722109834372,-524.93,0.00010999,2]
[333402329,1722109834383,-524.93,0.00010999,2]
[333402330,1722109834394,-524.93,0.00010999,2]
[333402331,1722109834405,-524.93,0.00010999,2]
[333402332,1722109834415,-524.93,0.00010999,2]
[333402333,1722109834426,-524.93,0.00010999,2]
[333402334,1722109834436,-525.14260009,0.00010999,2]
[333402335,1722109834447,-500.0,0.00010999,2]
[333402336,1722109834458,-500.0,0.00010999,2]
[333402337,1722109834469,-500.0,0.00010999,2]
[333402338,1722109834482,-500.0,0.00010999,2]
[333402339,1722109834492,-500.0,0.00010999,2]
[333402340,1722109834504,-500.0,0.00010999,2]
[333402341,1722109834514,-500.0,0.00010999,2]
[333402342,1722109834524,-182.83,0.00010999,2]
[333402343,1722109834539,-500.0,0.00010999,2]
[333402344,1722109834549,-400.29,0.00010999,2]
[333402345,1722109834563,-500.0,0.00010999,2]
[333402346,1722109834575,-350.35,0.00010999,2]
[333402347,1722109834586,-500.0,0.00010999,2]
[333402348,1722109834596,-500.0,0.00010999,2]
[333402349,1722109834607,-240.18,0.00010999,2]
[333402350,1722109834617,-500.0,0.00010999,2]
[333402351,1722109834627,-500.0,0.00010999,2]
[333402352,1722109834638,-271.057395,0.00010999,2]
[333402353,1722109834649,-500.0,0.00010999,2]
[333402354,1722109834659,-500.0,0.00010999,2]
[333402355,1722109834670,-500.0,0.00010999,2]
[333402356,1722109834680,-500.0,0.00010999,2]
[333402357,1722109834690,-500.0,0.00010999,2]
[333402358,1722109834701,-252.106068,0.00010999,2]
[333402359,1722109834711,-500.0,0.00010999,2]
[333402360,1722109834722,-573.70951672,0.00010999,2]
[333402361,1722109834735,-500.0,0.00010999,2]
[333402362,1722109834745,-500.0,0.00010999,2]
[333402363,1722109834756,-500.0,0.00010999,2]
[333402364,1722109834766,-500.0,0.00010999,2]
[333402365,1722109834781,-500.0,0.00010999,2]
[333402366,1722109834792,-551.531928,0.00010999,2]
[333402367,1722109834802,-500.0,0.00010999,2]
[333402368,1722109834814,-366.64930551,0.00010999,2]
[333402369,1722109834825,-500.0,0.00010999,2]
[333402370,1722109834835,-249.62,0.00010999,2]
[333402371,1722109834845,-500.0,0.00010999,2]
[333402372,1722109834856,-500.0,0.00010999,2]
[333402373,1722109834866,-500.0,0.00010999,2]
[333402374,1722109834876,-638.43,0.00010999,2]
[333402375,1722109834886,-544.93,0.00010999,2]
[333402376,1722109834896,-500.0,0.00010999,2]
[333402377,1722109834905,-500.0,0.00010999,2]
[333402378,1722109834916,-564.16,0.00010999,2]
[333402379,1722109834925,-500.0,0.00010999,2]
[333402380,1722109834935,-500.0,0.00010999,2]
[333402381,1722109834945,-500.0,0.00010999,2]
[333402382,1722109834955,-500.0,0.00010999,2]
[333402383,1722109834964,-500.0,0.00010999,2]
[333402384,1722109834974,-175.9896936,0.00010999,2]
[333402385,1722109834983,-500.0,0.00010999,2]
[333402386,1722109834993,-500.0,0.00010999,2]
[333402387,1722109835003,-500.0,0.00010999,2]
[333402388,1722109835012,-500.0,0.00010999,2]
[333402389,1722109835022,-438.16205669,0.00010999,2]
[333402390,1722109835035,-500.0,0.00010999,2]
[333402391,1722109835045,-750.0,0.00010999,2]
[333402392,1722109835054,-627.83,0.00010999,2]
[333402393,1722109835064,-500.0,0.00010999,2]
[333402394,1722109835074,-500.0,0.00010999,2]
[333402395,1722109835084,-500.0,0.00010999,2]
[333402396,1722109835093,-600.28,0.00010999,2]
[333402397,1722109835103,-500.0,0.00010999,2]
[333402398,1722109835112,-500.0,0.00010999,2]
[333402399,1722109835122,-407.99461511,0.00010999,2]
[333402400,1722109835132,-879.69,0.00010999,2]
[333402401,1722109835141,-879.69,0.00010999,2]
[333402402,1722109835151,-879.69,0.00010999,2]
[333402403,1722109835161,-879.69,0.00010999,2]
[333402404,1722109835171,-879.69,0.00010999,2]
[333402405,1722109835180,-879.69,0.00010999,2]
[333402406,1722109835190,-879.69,0.00010999,2]
[333402407,1722109835200,-879.69,0.00010999,2]
[333402408,1722109835209,-450.36918607,0.00010999,2]
[333402409,1722109835224,-429.32081393,0.00010999,2]
[333402410,1722109835234,-879.69,0.00010999,2]
[333402411,1722109835245,-879.69,0.00010999,2]
[333402412,1722109835255,-879.69,0.00010999,2]
[333402413,1722109835264,-879.69,0.00010999,2]
[333402414,1722109835274,-879.69,0.00010999,2]
[333402415,1722109835287,-879.69,0.00010999,2]
[333402416,1722109835297,-879.69,0.00010999,2]
[333402417,1722109835307,-879.69,0.00010999,2]
[333402418,1722109835317,-879.69,0.00010999,2]
[333402419,1722109835327,-879.69,0.00010999,2]
[333402420,1722109835337,-879.69,0.00010999,2]
[333402421,1722109835347,-879.69,0.00010999,2]
[333402422,1722109835357,-879.69,0.00010999,2]
[333402423,1722109835367,-879.69,0.00010999,2]
[333402424,1722109835377,-879.69793858,0.00010999,2]
[333402425,1722109835387,-500.0,0.00010999,2]
[333402426,1722109835397,-500.0,0.00010999,2]
[333402427,1722109835406,-507.65577282,0.00010999,2]
[333402428,1722109835416,-4825.5674191,0.00010999,2]
[333402429,1722109835425,-500.0,0.00010999,2]
[333402430,1722109835435,-342.8317906,0.00010999,2]
[333402431,1722109835446,-244.68,0.00010999,2]
[333402432,1722109835455,-500.0,0.00010999,2]
[333402433,1722109835464,-418.81,0.00010999,2]
[333402434,1722109835474,-500.0,0.00010999,2]
[333402435,1722109835484,-500.0,0.00010999,2]
[333402436,1722109835493,-500.0,0.00010999,2]
[333402437,1722109835502,-500.0,0.00010999,2]
[333402438,1722109835512,-500.0,0.00010999,2]
[333402439,1722109835521,-177.44,0.00010999,2]
[333402440,1722109835533,-500.0,0.00010999,2]
[333402441,1722109835543,-351.99772527,0.00010999,2]
[333402442,1722109835552,-587.0,0.00011,2]
[333402443,1722109835561,-311079.8496632,0.00011,2]
[333402444,1722109835572,-819.676,0.00011,2]
[333402445,1722109835589,-1213.93749004,0.00011,2]
[333402446,1722109835600,-334.61,0.00011,2]
[333402447,1722109835612,-2380.460904,0.00011,2]
[333402448,1722109835628,-13886.37311045,0.00011,2]
[333402449,1722109835639,-9892.42309837,0.00011,2]
[333402450,1722109835651,-521.124372,0.00011,2]
[333402458,1722109837783,-1291.3936374,0.00011,2]
[333402459,1722109838410,-431.66961192,0.00011,2]
[333402460,1722109838463,-8779.34461839,0.00011,2]
[333402461,1722109838474,-34063.0,0.00011,2]
[333402462,1722109838731,-19388.45805428,0.00011,2]
[333402592,1722109840010,-293.59112959,0.00011,2]
[333402627,1722109840531,-1016.89946502,0.00011,2]
[333402629,1722109840544,-285.24212946,0.00011,2]
[333402634,1722109840588,-884.16644664,0.00011,2]
[333402636,1722109840600,-3455.39202086,0.00011,2]
[333402641,1722109840642,-112234.85206906,0.00011,2]
[333402643,1722109840653,-4577225.34633873,0.00011,2]
[333402649,1722109840696,-5346.61241976,0.00011,2]
[333402651,1722109840707,-1942.37721319,0.00011,2]
[333402682,1722109841015,-1821.63714935,0.00011,2]
[333402684,1722109841026,-6925.93042756,0.00011,2]
[333402831,1722109842750,-2606.49315939,0.00010999,2]
[333402833,1722109842762,-833.64,0.00010999,2]
[333402842,1722109842857,-360.80937151,0.00010999,2]
[333402844,1722109842869,-2298.27982606,0.00010999,2]
[333402846,1722109842880,-3404.0,0.00010999,2]
[333402848,1722109842892,-6712.0,0.00010999,2]
[333402851,1722109842904,-337.45863988,0.00010999,2]
[333402853,1722109842915,-33447.31900316,0.00010999,2]
[333402858,1722109842962,-679.0,0.00011,2]
[333402859,1722109842971,-59651.84457748,0.00011,2]
[333402861,1722109842982,-714.95437853,0.00011,2]
[333402863,1722109842993,-1243.9391314,0.00011,2]
[333402865,1722109843005,-9123.0327794,0.00011,2]
[333402873,1722109843074,-384.34999965,0.00011,2]
[333402875,1722109843085,-420944.96768108,0.00011,2]
[333403026,1722109845848,-831.51467711,0.000108,2]
[333403027,1722109845904,-2.27532289,0.000108,2]
[333403028,1722109845915,-258.38397068,0.00010958,2]
[333403029,1722109845924,-287.1824707,0.00011,2]
[333403030,1722109846063,-1707.18966,0.00011,2]
[333403031,1722109846075,-620.1702649,0.00011,2]
[333403032,1722109846118,-683.97176608,0.00011,2]
[333403033,1722109846129,-3417.28164,0.00011,2]
[333403034,1722109846226,-352.21040826,0.00011,2]
[333403035,1722109846239,-59398.39351903,0.00011,2]
[333403036,1722109846250,-337.08969517,0.00011,2]
[333403215,1722111033198,-1206.21,8.219e-05,2]
[333403216,1722111033208,-876.81,9.618e-05,2]
[333403217,1722111033217,-352.43627906,9.618e-05,2]
[333403218,1722111033227,-200.0,9.692e-05,2]
[333403219,1722111033237,-707.39,9.706e-05,2]
[333403220,1722111033247,-188.67033941,9.713e-05,2]
[333403221,1722111033256,-250.0,9.713e-05,2]
[333403222,1722111033265,-7128.88338153,9.744e-05,2]
[333403223,1722111033276,-1028.061,9.744e-05,2]
[333403224,1722111033501,-6004.92195362,9.744e-05,2]
[333403225,1722111033526,-3410.4,9.744e-05,2]
[333403226,1722111033544,-2480.12615262,9.744e-05,2]
[333403227,1722111033609,-3847.60751223,9.744e-05,2]
[333403228,1722111033620,-292.61,9.746e-05,2]
[333403229,1722111033631,-500.0,9.756e-05,2]
[333403230,1722111033641,-1740.94,9.756e-05,2]
[333403231,1722111033651,-795.2,9.788e-05,2]
[333403232,1722111033665,-299.99,9.788e-05,2]
[333403233,1722111033675,-1250.0,0.0001,2]
[333403234,1722111033686,-833.93,0.00010055,2]
[333403235,1722111033696,-263.45213055,0.00010055,2]
[333403236,1722111033709,-387.02289021,0.00010055,2]
[333403237,1722111033721,-183.45497924,0.00010055,2]
[333403238,1722111033731,-833.93,0.00010055,2]
[333403239,1722111033742,-46.8676031,0.00010055,2]
[333403240,1722111033755,-787.0623969,0.00010055,2]
[333403241,1722111033765,-328.9466185,0.00010055,2]
[333403243,1722111038062,-504.9833815,0.00010055,2]
[333403244,1722111038072,-558.08,0.00010055,2]
[333403245,1722111038081,-259.94,0.00010192,2]
[333403246,1722111038095,-1206.21,0.00010462,2]
[333403247,1722111038103,-256.6235685,0.0001078,2]
[333403248,1722111038112,-3259.70340109,0.0001079,2]
[333403249,1722111038122,-482.67243567,0.0001079,2]
[333403256,1722111040161,-21.12786324,0.0001079,2]
[333403257,1722111040170,-701.0455,0.0001079,2]
[333403258,1722111040179,-4642.9854,0.00010844,2]
[333403259,1722111040188,-3645.0960703,0.0001089,2]
[333403260,1722111040199,-403.3773484,0.0001089,2]
[333403261,1722111040211,-6011.5265813,0.0001089,2]
[333403262,1722111040219,-677.23489617,0.00010899,2]
[333403263,1722111040229,-677.23489616,0.00010899,2]
[333403264,1722111040238,-677.23489616,0.00010899,2]
[333403265,1722111040248,-677.23489616,0.00010899,2]
[333403266,1722111040257,-677.23489616,0.00010899,2]
[333403267,1722111040266,-677.23489616,0.00010899,2]
[333403268,1722111040275,-677.23489616,0.00010899,2]
[333403269,1722111040294,-677.23489616,0.000109,2]
[333403270,1722111040303,-3676.1446,0.000109,2]
[333403271,1722111040313,-677.23489616,0.000109,2]
[333403272,1722111040322,-5025.06406602,0.000109,2]
[333403273,1722111040331,-2147.86361307,0.000109,2]
[333403274,1722111040340,-2147.86361307,0.000109,2]
[333403275,1722111040350,-1832.10231925,0.000109,2]
[333403276,1722111040359,-677.23489616,0.000109,2]
[333403277,1722111040368,-166.53267703,0.000109,2]
[333403278,1722111040376,-166.532677,0.000109,2]
[333403279,1722111040385,-166.532677,0.000109,2]
[333403280,1722111040394,-166.532677,0.000109,2]
[333403281,1722111040403,-1246.58689942,0.000109,2]
[333403282,1722111040412,-500.0,0.00010912,2]
[333403283,1722111040421,-707.39,0.0001092,2]
[333403284,1722111040431,-166.0,0.00010944,2]
[333403286,1722111040440,-841.197,0.00010944,2]
[333403288,1722111040450,-621.0,0.00010944,2]
[333403290,1722111040460,-450.0,0.00010944,2]
[333403292,1722111040469,-150.0,0.00010944,2]
[333403294,1722111040479,-5425.39920991,0.00010944,2]
[333403296,1722111040490,-32926.18579009,0.00010944,2]
[333403298,1722111040499,-5824.0,0.00010944,2]
[333403300,1722111040509,-5119.0,0.00010944,2]
[333403302,1722111040519,-1202.0,0.00010944,2]
[333403304,1722111040528,-1669.0,0.00010944,2]
[333403306,1722111040543,-1072.0,0.00010944,2]
[333403308,1722111040553,-387.02289021,0.00010958,2]
[333403310,1722111040562,-500.0,0.00010958,2]
[333403312,1722111040571,-500.0,0.00010958,2]
[333403314,1722111040580,-500.0,0.00010958,2]
[333403316,1722111040589,-500.0,0.00010958,2]
[333403318,1722111040598,-565.42924443,0.00010958,2]
[333403321,1722111040608,-696.46,0.00010958,2]
[333403324,1722111040617,-696.46,0.00010958,2]
[333403327,1722111040626,-500.0,0.00010958,2]
[333403329,1722111040635,-279.78,0.00010958,2]
[333403331,1722111040644,-506.57427558,0.00010958,2]
[333403333,1722111040653,-500.0,0.00010958,2]
[333403335,1722111040662,-500.0,0.00010959,2]
[333403337,1722111040671,-150.0,0.00010959,2]
[333403339,1722111040680,-250.0,0.00010959,2]
[333403341,1722111040689,-187.94,0.00010959,2]
[333403343,1722111040698,-156.61,0.00010959,2]
[333403344,1722111040707,-783.09,0.00010959,2]
[333403346,1722111040716,-292.61,0.00010964,2]
[333403348,1722111040725,-500.0,0.00010998,2]
[333403350,1722111040734,-500.0,0.00010998,2]
[333403352,1722111040744,-696.46,0.00010998,2]
[333403354,1722111040752,-3020.018289,0.00010998,2]
[333403356,1722111040762,-1367.1250676,0.00010998,2]
[333403358,1722111040771,-65228.5219467,0.00010998,2]
[333403360,1722111040780,-410.56839659,0.00010998,2]
[333403362,1722111040792,-1279.33874501,0.00010998,2]
[333403364,1722111040803,-604.25745948,0.00010998,2]
[333403367,1722111040818,-358.02398172,0.00010998,2]
[333403369,1722111040827,-500.0,0.00010999,2]
[333403371,1722111040836,-302.03927896,0.00010999,2]
[333403373,1722111040846,-205.28071932,0.00010999,2]
[333403570,1722111043002,-294.71928068,0.00010999,2]
[333403571,1722111043011,-62.10345928,0.00010999,2]
[333403572,1722111043056,-437.89654072,0.00010999,2]
[333403573,1722111043065,-254.61,0.00010999,2]
[333403574,1722111043074,-696.46,0.00010999,2]
[333403575,1722111043085,-696.46,0.00010999,2]
[333403576,1722111043095,-696.46,0.00010999,2]
[333403577,1722111043105,-696.46,0.00010999,2]
[333403578,1722111043114,-696.46,0.00010999,2]
[333403579,1722111043123,-696.46,0.00010999,2]
[333403580,1722111043133,-696.46,0.00010999,2]
[333403581,1722111043143,-696.46,0.00010999,2]
[333403582,1722111043152,-696.46,0.00010999,2]
[333403583,1722111043162,-696.46,0.00010999,2]
[333403584,1722111043173,-696.46,0.00010999,2]
[333403585,1722111043183,-696.46,0.00010999,2]
[333403586,1722111043192,-696.46,0.00010999,2]
[333403587,1722111043202,-696.46,0.00010999,2]
[333403588,1722111043211,-696.46,0.00010999,2]
[333403589,1722111043221,-696.46,0.00010999,2]
[333403590,1722111043230,-696.46,0.00010999,2]
[333403591,1722111043239,-696.46,0.00010999,2]
[333403592,1722111043248,-696.46,0.00010999,2]
[333403593,1722111043258,-696.46,0.00010999,2]
[333403594,1722111043267,-696.47101189,0.00010999,2]
[333403595,1722111043276,-500.0,0.00010999,2]
[333403596,1722111043287,-332.665,0.00010999,2]
[333403597,1722111043297,-500.0,0.00010999,2]
[333403598,1722111043306,-333.47,0.00010999,2]
[333403599,1722111043316,-519.0,0.00011,2]
[333403600,1722111043325,-50644.38534023,0.00011,2]
[333403601,1722111043340,-119509.13077881,0.00011,2]
[333403602,1722111043351,-24278.19339313,0.00011,2]
[333403603,1722111043368,-1399.71847776,0.00011,2]
[333403611,1722111046167,-500.0,0.00010377,2]
[333403612,1722111046177,-67891.50999998,0.00011,2]
[333403613,1722111046223,-340.19,0.00011,2]
[333403614,1722111046234,-2059.127034,0.00011,2]
[333403615,1722111046278,-408.984,0.00011,2]
[333403693,1722112233185,-1297.71,8.219e-05,2]
[333403694,1722112233195,-163.69,8.219e-05,2]
[333403695,1722112233205,-2937.53,9e-05,2]
[333403696,1722112233216,-1664.160593,9.629e-05,2]
[333403697,1722112233226,-300.0,9.678e-05,2]
[333403698,1722112233237,-300.0,9.678e-05,2]
[333403699,1722112233247,-81.10560427,9.678e-05,2]
[333403700,1722112233259,-218.89439573,9.678e-05,2]
[333403701,1722112233270,-3414.5,9.679e-05,2]
[333403702,1722112233280,-23900.0,9.706e-05,2]
[333403703,1722112233293,-1512.12,9.711e-05,2]
[333403704,1722112233303,-190.01,9.727e-05,2]
[333403705,1722112233313,-541.22,9.727e-05,2]
[333403706,1722112233323,-250.0,9.768e-05,2]
[333403707,1722112233333,-424.44,9.791e-05,2]
[333403708,1722112233343,-1836.58,9.803e-05,2]
[333403709,1722112233353,-590.08,9.807e-05,2]
[333403710,1722112233363,-1821.71,9.807e-05,2]
[333403711,1722112233373,-499.99,9.807e-05,2]
[333403712,1722112233383,-189.14,9.83e-05,2]
[333403713,1722112233392,-171.48069185,9.972e-05,2]
[333403714,1722112233404,-404.07930815,9.972e-05,2]
[333403715,1722112233414,-150.0,9.998e-05,2]
[333403716,1722112233428,-383.26289167,9.999e-05,2]
[333403717,1722112233440,-2720.02710833,9.999e-05,2]
[333403718,1722112233450,-500.0,0.0001,2]
[333403719,1722112233459,-500.0,0.0001,2]
[333403720,1722112233471,-500.0,0.0001,2]
[333403721,1722112233480,-500.0,0.0001,2]
[333403722,1722112233490,-500.0,0.0001,2]
[333403723,1722112233500,-506.53,0.0001,2]
[333403724,1722112233509,-500.0,0.0001,2]
[333403725,1722112233519,-500.0,0.0001,2]
[333403726,1722112233529,-297.88,0.0001,2]
[333403727,1722112233541,-500.0,0.0001,2]
[333403728,1722112233550,-2354.28,0.0001,2]
[333403729,1722112233560,-221.53289167,0.0001,2]
[333403730,1722112233571,-1028.46710833,0.0001,2]
[333403731,1722112233581,-123.11411911,0.00010029,2]
[333403732,1722112233593,-151.65588089,0.00010029,2]
[333403734,1722112233603,-210.66,0.00010141,2]
[333403736,1722112233613,-839.8,0.00010241,2]
[333403738,1722112233622,-833.93,0.00010241,2]
[333403740,1722112233632,-2.24411911,0.00010241,2]
[333403743,1722112233656,-831.68588089,0.00010241,2]
[333403745,1722112233666,-833.93,0.00010241,2]
[333403747,1722112233676,-833.93,0.00010241,2]
[333403749,1722112233686,-833.93,0.00010241,2]
[333403751,1722112233696,-833.93,0.00010241,2]
[333403753,1722112233706,-833.93,0.00010241,2]
[333403755,1722112233715,-910.28925678,0.00010366,2]
[333403757,1722112233725,-150.0,0.00010378,2]
[333403759,1722112233735,-300.0,0.00010378,2]
[333403760,1722112233744,-150.0,0.00010378,2]
[333403761,1722112233754,-150.0,0.00010378,2]
[333403762,1722112233764,-1297.71,0.00010466,2]
[333403763,1722112233774,-3212.899998,0.00010497,2]
[333403764,1722112233787,-420.0,0.00010646,2]
[333403765,1722112233796,-420.0,0.00010646,2]
[333403766,1722112233806,-4143.0,0.00010673,2]
[333403767,1722112233815,-152.0,0.00010847,3]
[333403768,1722112233825,-708.11999169,0.00010854,2]
[333403769,1722112233834,-708.11999169,0.00010865,2]
[333403770,1722112233844,-9396.87847511,0.0001088,2]
[333403771,1722112233853,-708.11999169,0.00010881,2]
[333403772,1722112233864,-1177.46456036,0.00010884,2]
[333403773,1722112233874,-1177.46456036,0.00010887,2]
[333403774,1722112233884,-412.606,0.00010888,2]
[333403775,1722112233894,-1177.46456036,0.00010888,2]
[333403776,1722112233904,-488.8288,0.00010898,2]
[333403777,1722112233913,-2071.1634,0.000109,2]
[333403778,1722112233923,-276.2335,0.000109,2]
[333403779,1722112233933,-7500.0,0.000109,2]
[333403780,1722112233942,-1207.768,0.000109,2]
[333403781,1722112233953,-500.0,0.00010912,2]
[333403782,1722112233963,-200.0,0.00010945,2]
[333403783,1722112233972,-1301.0,0.00010956,2]
[333403784,1722112233981,-606.62,0.00010956,2]
[333403785,1722112233990,-768.32337957,0.00010956,2]
[333403786,1722112234002,-42.67662043,0.00010956,2]
[333403787,1722112234012,-500.0,0.00010959,2]
[333403788,1722112234021,-500.0,0.00010959,2]
[333403789,1722112234030,-250.0,0.00010959,2]
[333403790,1722112234046,-150.0,0.00010959,2]
[333403791,1722112234055,-411.02968463,0.00010959,2]
[333403792,1722112234070,-241.54031537,0.00010959,2]
[333403793,1722112234080,-3663.78423065,0.0001097,2]
[333403794,1722112234092,-2367.47599222,0.0001097,2]
[333403795,1722112234103,-29244.69705773,0.0001097,2]
[333403796,1722112234131,-1010.93283,0.0001097,2]
[333403797,1722112234143,-52256.98840558,0.0001097,2]
[333403798,1722112234154,-7895.19879925,0.00010997,2]
[333403806,1722112238427,-150.0,0.00010956,2]
[333403807,1722112238439,-1465.968,0.00010997,2]
[333403808,1722112238491,-638.83320075,0.00010997,2]
[333403809,1722112238500,-537.20611764,0.00010997,2]
[333403810,1722112238550,-282.29427162,0.00010997,2]
[333403811,1722112238669,-1174.5999699,0.00010997,2]
[333403812,1722112238681,-189.67015617,0.00010997,2]
[333403813,1722112238690,-4201.77768991,0.00010998,2]
[333403814,1722112238702,-415.86603546,0.00010998,2]
[333403815,1722112238713,-8045.85602318,0.00010998,2]
[333403816,1722112238724,-39082.33806035,0.00010998,2]
[333403818,1722112238734,-1076.3777915,0.00010998,2]
[333403820,1722112238743,-248.3622951,0.00010998,2]
[333403822,1722112238752,-3524.6109913,0.00010998,2]
[333403824,1722112238761,-1492.6192706,0.00010998,2]
[333403826,1722112238770,-2088.1461083,0.00010998,2]
[333403828,1722112238779,-8364.64538966,0.00010998,2]
[333403830,1722112238793,-500.0,0.00010999,2]
[333403832,1722112238803,-339.11474092,0.00010999,2]
[333403834,1722112238812,-500.0,0.00010999,2]
[333403836,1722112238821,-500.0,0.00010999,2]
[333403839,1722112238831,-500.0,0.00010999,2]
[333403842,1722112238840,-197.305,0.00010999,2]
[333403845,1722112238850,-1215.60694881,0.00010999,3]
[333403848,1722112238859,-500.0,0.00010999,2]
[333403852,1722112238869,-500.0,0.00010999,2]
[333403855,1722112238878,-500.0,0.00010999,2]
[333403858,1722112238888,-500.0,0.00010999,2]
[333403860,1722112238897,-500.0,0.00010999,2]
[333403863,1722112238906,-183.61,0.00010999,2]
[333403866,1722112238915,-500.0,0.00010999,2]
[333403869,1722112238925,-500.0,0.00010999,2]
[333403872,1722112238934,-500.0,0.00010999,2]
[333403875,1722112238944,-500.0,0.00010999,2]
[333403878,1722112238953,-434.19205534,0.00010999,2]
[333403881,1722112238965,-65.80794466,0.00010999,2]
[333403884,1722112238974,-405.03,0.00010999,2]
[333403886,1722112238983,-10.7387363,0.00010999,2]
[333403889,1722112238995,-489.2612637,0.00010999,2]
[333403891,1722112239005,-500.0,0.00010999,2]
[333403893,1722112239014,-500.0,0.00010999,2]
[333403895,1722112239024,-500.0,0.00010999,2]
[333403897,1722112239036,-500.0,0.00010999,2]
[333403899,1722112239049,-500.0,0.00010999,2]
[333403901,1722112239058,-180.98998606,0.00010999,2]
[333403903,1722112239068,-502.33908338,0.00010999,2]
[333403905,1722112239078,-574.65564846,0.00010999,2]
[333403906,1722112239090,-500.0,0.00010999,2]
[333403908,1722112239099,-500.0,0.00010999,2]
[333403910,1722112239108,-500.0,0.00010999,2]
[333403912,1722112239117,-500.0,0.00010999,2]
[333403914,1722112239126,-500.0,0.00010999,2]
[333403916,1722112239135,-500.0,0.00010999,2]
[333403918,1722112239145,-500.0,0.00010999,2]
[333403920,1722112239154,-500.0,0.00010999,2]
[333403922,1722112239163,-500.0,0.00010999,2]
[333403924,1722112239173,-500.0,0.00010999,2]
[333403926,1722112239182,-500.0,0.00010999,2]
[333403928,1722112239192,-500.0,0.00010999,2]
[333403930,1722112239201,-500.0,0.00010999,2]
[333403931,1722112239211,-500.0,0.00010999,2]
[333403932,1722112239221,-500.0,0.00010999,2]
[333403933,1722112239230,-379.43034724,0.00010999,2]
[333404129,1722112241294,-450.0,0.00010956,2]
[333404130,1722112241304,-120.56965276,0.00010999,2]
[333404131,1722112241314,-351.09986958,0.00010999,2]
[333404132,1722112241324,-270.16984481,0.00010999,2]
[333404133,1722112241333,-500.0,0.00010999,2]
[333404134,1722112241342,-585.63,0.00010999,2]
[333404135,1722112241352,-435.48087285,0.00010999,2]
[333404136,1722112241367,-64.51912715,0.00010999,2]